bitfinex/quotes_SOLUSD_20250830
["timestamp","ask_amount","ask_price","bid_price","bid_amount"]
[1756545029446,65.69530104,203.16,203.15,0.03]
[1756545029643,60.77307226,203.16,203.15,0.03]
[1756545030551,65.69530104,203.16,203.15,0.03]
[1756545034439,60.77307226,203.16,203.15,0.73]
[1756545035254,3.30766224,203.16,203.15,0.73]
[1756545035449,0.06,203.16,203.15,0.73]
[1756545035648,3.30766224,203.16,203.15,0.73]
[1756545036250,0.06,203.16,203.15,10.36228709]
[1756545036751,0.06,203.16,203.15,19.99480009]
[1756545048345,0.76,203.16,203.15,0.03]
[1756545048664,19.06541002,203.16,203.15,0.03]
[1756545048968,22.31328374,203.16,203.15,0.03]
[1756545049267,61.39328374,203.16,203.15,0.03]
[1756545049862,42.38787372,203.16,203.15,0.03]
[1756545051973,47.79768973,203.16,203.15,0.03]
[1756545052282,47.09768973,203.16,203.15,0.03]
[1756545052983,8.01768973,203.16,203.15,0.03]
[1756545053282,8.71768973,203.16,203.15,0.03]
[1756545054578,8.71759751,203.16,203.15,0.03]
[1756545055456,22.31319152,203.16,203.15,0.03]
[1756545056565,27.2354203,203.16,203.15,0.03]
[1756545061660,27.2354203,203.16,203.15,0.69]
[1756545061661,3.3077815,203.16,203.15,0.69]
[1756545061996,0.06,203.16,203.15,0.03]
[1756545062289,8.01759751,203.16,203.15,0.03]
[1756545062668,47.07759751,203.16,203.15,0.03]
[1756545062890,42.3677815,203.16,203.15,0.03]
[1756545063078,42.3677815,203.16,203.15,0.69]
[1756545063281,42.3677815,203.16,203.15,0.03]
[1756545063666,47.75759751,203.16,203.15,0.03]
[1756545063890,61.35319152,203.16,203.15,0.03]
[1756545064183,42.3677815,203.16,203.15,0.03]
[1756545064387,42.3677815,203.16,203.15,0.69]
[1756545064388,3.3077815,203.16,203.15,0.69]
[1756545064690,0.06,203.16,203.15,5.39981601]
[1756545064887,0.06,203.16,203.15,12.29520909]
[1756545067662,0.06,203.16,203.15,7.37273801]
[1756545068074,0.06,203.16,203.15,2.662922]
[1756545068284,0.06,203.16,203.15,7.37273801]
[1756545068993,0.06,203.16,203.15,10.32228709]
[1756545069792,0.06,203.16,203.15,8.70759801]
[1756545069992,0.06,203.16,203.15,3.997782]
[1756545070195,0.06,203.16,203.15,8.70759801]
[1756545070598,0.06,203.16,203.15,3.997782]
[1756545070890,0.06,203.16,203.15,8.70759801]
[1756545071365,0.06,203.16,203.15,5.39981601]
[1756545073067,0.06,203.16,203.15,10.32228709]
[1756545074566,0.06,203.16,203.15,5.39981601]
[1756545075586,0.06,203.16,203.15,10.32228709]
[1756545075985,3.31175336,203.19,203.18,26.0]
[1756545076295,0.06,203.19,203.18,30.70981601]
[1756545076492,0.06,203.19,203.18,31.36981601]
[1756545077198,0.06,203.19,203.18,33.34225101]
[1756545078094,0.06,203.19,203.18,38.26399527]
[1756545080282,0.06,203.19,203.18,33.55417926]
[1756545080483,0.06,203.19,203.18,38.26399527]
[1756545082471,0.06,203.19,203.18,42.97381128]
[1756545082676,0.06,203.21,203.19,0.14216157]
[1756545082883,0.06,203.21,203.2,75.07963202]
[1756545083297,0.06,203.21,203.2,77.05187202]
[1756545084100,0.06,203.21,203.2,81.97313186]
[1756545084304,0.06,203.21,203.2,82.11529343]
[1756545084595,1e-08,203.21,203.2,82.11529343]
[1756545084794,0.06,203.22,203.2,82.11529343]
[1756545085018,0.06,203.22,203.21,5.36981601]
[1756545085323,0.06,203.23,203.22,0.14216157]
[1756545085484,0.06,203.28,203.22,4.85197758]
[1756545085806,0.06,203.28,203.23,69.70981601]
[1756545086114,0.06,203.28,203.27,30.91956511]
[1756545086293,0.06,203.28,203.27,74.60938112]
[1756545086603,0.06,203.34,203.27,87.56829389]
[1756545086811,0.74,203.34,203.33,4.70981601]
[1756545087405,0.74,203.34,203.33,9.47963201]
[1756545088789,0.06,203.34,203.33,9.47963201]
[1756545090717,0.06,203.34,203.33,4.769816]
[1756545091015,0.06,203.34,203.33,9.47963201]
[1756545092404,0.06,203.34,203.33,4.769816]
[1756545092711,0.06,203.34,203.33,9.47963201]
[1756545094916,0.06,203.34,203.33,15.09774542]
[1756545098307,0.06,203.34,203.33,9.47963201]
[1756545098516,0.76,203.34,203.33,9.47963201]
[1756545098719,0.76,203.34,203.33,4.769816]
[1756545098919,0.76,203.34,203.3,4.91880062]
[1756545099123,0.76,203.34,203.32,9.41963201]
[1756545099303,0.06,203.34,203.32,9.41963201]
[1756545099493,0.06,203.34,203.32,4.709816]
[1756545099701,0.76,203.34,203.32,9.41963201]
[1756545100714,0.06,203.34,203.32,9.41963201]
[1756545101315,0.76,203.34,203.32,9.41963201]
[1756545101510,0.7,203.33,203.27,39.68]
[1756545101815,0.7,203.32,203.29,14.39684501]
[1756545102394,0.7,203.31,203.26,4.70981601]
[1756545102596,0.7,203.3,203.26,4.70981601]
[1756545102803,0.7,203.3,203.27,4.70981601]
[1756545103998,5.40981601,203.32,203.27,4.70981601]
[1756545104197,0.7,203.31,203.27,4.70981601]
[1756545105814,0.7,203.31,203.26,20.19943401]
[1756545106201,0.7,203.31,203.26,19.49943401]
[1756545106402,4.76981601,203.34,203.28,4.70981601]
[1756545106630,39.0,203.34,203.3,4.70981601]
[1756545106821,39.0,203.34,203.3,5.40981601]
[1756545107328,0.06,203.34,203.3,5.40981601]
[1756545108019,0.06,203.34,203.31,0.7]
[1756545108731,38.98,203.34,203.31,0.7]
[1756545109221,38.98,203.34,203.31,10.32835134]
[1756545109422,0.06,203.34,203.31,10.32835134]
[1756545109628,38.98,203.34,203.31,5.40981601]
[1756545109928,0.06,203.34,203.31,5.40981601]
[1756545110106,38.98,203.34,203.31,5.40981601]
[1756545110424,38.98,203.34,203.15,0.03]
[1756545110425,26.0,203.2,203.15,0.03]
[1756545110626,4.70981601,203.16,203.15,0.03]
[1756545110814,4.70981601,203.14,203.1,0.73]
[1756545111119,4.70981601,203.13,203.11,0.7]
[1756545111421,4.70981601,203.14,203.11,0.7]
[1756545112308,4.70981601,203.13,203.11,0.7]
[1756545113305,4.70981601,203.16,203.12,0.7]
[1756545113503,38.94,203.15,203.12,0.7]
[1756545113725,43.64981601,203.15,203.1,5.65364402]
[1756545113930,4.70981601,203.14,203.1,0.73]
[1756545114303,4.70981601,203.14,203.1,5.65365887]
[1756545114499,4.70981601,203.12,203.1,5.65365887]
[1756545114719,4.70981601,203.13,203.1,5.65365887]
[1756545116030,26.0,203.17,203.11,0.7]
[1756545116222,4.70981601,203.14,203.11,0.7]
[1756545116418,26.0,203.15,203.1,0.03]
[1756545116419,4.70981601,203.12,203.1,0.03]
[1756545116625,43.72981601,203.11,203.1,0.03]
[1756545117130,43.74981601,203.11,203.1,0.03]
[1756545118524,43.72981601,203.11,203.1,0.03]
[1756545120438,39.02,203.11,203.1,0.03]
[1756545120730,4.70981601,203.13,203.1,0.73]
[1756545120934,4.70981601,203.14,203.1,0.03]
[1756545121134,39.0,203.13,203.11,0.68]
[1756545121317,39.0,203.13,203.12,0.68]
[1756545121728,4.70981601,203.14,203.12,0.68]
[1756545121936,39.0,203.13,203.12,0.68]
[1756545122139,37.63145051,203.13,203.12,0.68]
[1756545123040,4.70981601,203.13,203.12,0.68]
[1756545123240,43.68981601,203.13,203.12,0.68]
[1756545123418,38.98,203.13,203.12,0.68]
[1756545123620,38.98,203.13,203.1,0.71]
[1756545124028,4.70981601,203.14,203.11,0.68]
[1756545124236,43.66981601,203.13,203.11,0.68]
[1756545124449,4.70981601,203.12,203.1,0.03]
[1756545124633,4.70981601,203.11,203.1,0.03]
[1756545124950,4.70981601,203.11,203.1,0.71]
[1756545125515,38.96,203.11,203.1,0.71]
[1756545126535,4.70981601,203.13,203.1,0.71]
[1756545126767,38.96,203.12,203.1,0.71]
[1756545129156,4.70981601,203.13,203.1,0.71]
[1756545129359,38.96,203.11,203.1,0.71]
[1756545130870,38.96,203.11,203.1,0.03]
[1756545131279,43.66981601,203.11,203.1,0.03]
[1756545132079,38.96,203.11,203.1,0.03]
[1756545132266,48.59325651,203.11,203.1,0.03]
[1756545132456,69.66981601,203.11,203.1,0.03]
[1756545132879,74.59325651,203.11,203.1,0.03]
[1756545133573,88.18885052,203.11,203.1,0.03]
[1756545133754,49.22885052,203.11,203.1,0.03]
[1756545133959,88.18885052,203.11,203.1,0.03]
[1756545134575,57.62119608,203.11,203.1,0.03]
[1756545134771,30.85197758,203.08,203.07,0.1]
[1756545134986,74.85614539,203.08,203.07,0.1]
[1756545135360,88.4517394,203.08,203.07,0.1]
[1756545136659,83.74192339,203.08,203.07,0.1]
[1756545136861,44.66192339,203.08,203.07,0.1]
[1756545137074,88.4317394,203.08,203.07,0.1]
[1756545137271,88.4317394,203.08,202.96,0.68]
[1756545137272,26.0,203.0,202.96,0.68]
[1756545137470,43.76981601,202.99,202.97,0.68]
[1756545137683,4.70981601,202.99,202.94,4.70981601]
[1756545137879,4.70981601,202.99,202.98,0.68]
[1756545138183,43.74981601,202.99,202.98,0.68]
[1756545138876,39.04,202.99,202.98,0.68]
[1756545139077,4.70981601,203.01,202.98,0.68]
[1756545139306,39.04,203.0,202.91,1.975065]
[1756545139584,4.70981601,202.99,202.98,0.68]
[1756545139770,43.72981601,202.99,202.98,0.68]
[1756545140377,30.70981601,202.99,202.91,1.975065]
[1756545140560,30.70981601,202.99,202.94,5.38981601]
[1756545140877,30.70981601,202.99,202.91,4.9281021]
[1756545140878,26.0,202.99,202.95,5.38981601]
[1756545141068,39.02,202.98,202.96,0.68]
[1756545141483,26.0,202.99,202.96,0.68]
[1756545141656,39.0,202.98,202.96,0.68]
[1756545142079,39.0,202.98,202.97,0.68]
[1756545143080,30.70981601,202.99,202.97,0.68]
[1756545143384,38.98,202.98,202.97,0.68]
[1756545144164,26.0,202.99,202.97,0.68]
[1756545144488,12.31169536,203.06,202.97,5.38981601]
[1756545144489,38.98,202.98,202.97,5.38981601]
[1756545144874,38.98,202.98,202.97,0.68]
[1756545145188,30.70981601,203.01,202.97,0.68]
[1756545145419,38.98,203.0,202.97,0.68]
[1756545145568,38.98,203.0,202.98,0.68]
[1756545145764,4.70981601,202.99,202.96,0.68]
[1756545146261,38.98,202.98,202.96,0.68]
[1756545147064,4.70981601,203.0,202.97,0.68]
[1756545147265,38.98,202.99,202.97,0.68]
[1756545147673,4.70981601,203.0,202.95,9.63710648]
[1756545147674,38.98,202.98,202.95,9.63710648]
[1756545147887,38.98,202.98,202.95,4.92729047]
[1756545148089,38.98,202.98,202.95,9.63710648]
[1756545148290,38.98,202.98,202.96,0.68]
[1756545148595,38.98,202.98,202.97,0.68]
[1756545149464,26.0,203.03,202.97,0.68]
[1756545149465,4.92465351,203.06,202.97,5.38981601]
[1756545149665,4.70981601,203.03,202.98,5.38981601]
[1756545149875,4.70981601,203.03,202.91,92.06230632]
[1756545149876,43.68981601,203.02,202.99,0.68]
[1756545150080,43.68981601,203.02,203.0,0.68]
[1756545150292,4.70981601,203.01,202.98,0.68]
[1756545150505,38.98,203.02,202.96,0.68]
[1756545150506,4.70981601,203.0,202.96,0.68]
[1756545150676,38.98,202.99,202.97,0.68]
[1756545151080,26.0,203.02,202.95,9.63704414]
[1756545151385,4.70981601,203.0,202.96,0.67]
[1756545152094,4.70981601,203.0,202.97,0.03]
[1756545152392,4.70981601,203.0,202.98,0.67]
[1756545152582,26.0,203.02,202.98,5.37981601]
[1756545152770,4.70981601,203.03,202.99,0.67]
[1756545152968,38.98,203.01,203.0,0.67]
[1756545153903,4.70981601,203.02,203.0,0.67]
[1756545154495,38.98,203.01,203.0,0.67]
[1756545154703,38.98,203.01,202.98,0.67]
[1756545154872,38.98,203.01,202.99,0.67]
[1756545155492,44.58054778,203.05,203.0,0.67]
[1756545155797,4.70981601,203.02,203.0,0.67]
[1756545155982,38.98,203.01,203.0,0.67]
[1756545156494,38.98,203.01,202.98,5.59658676]
[1756545156671,38.98,203.01,202.98,4.92658676]
[1756545156873,4.70981601,203.02,202.99,0.67]
[1756545157174,26.06,203.05,203.0,0.67]
[1756545157387,0.06,203.05,203.04,4.70981601]
[1756545157683,0.06,203.05,203.04,5.37981601]
[1756545157885,0.06,203.05,203.04,0.67]
[1756545158402,0.06,203.05,203.04,5.37981601]
[1756545158609,39.04,203.05,203.04,5.37981601]
[1756545158813,0.06,203.05,203.04,5.37981601]
[1756545158979,39.04,203.05,203.04,5.37981601]
[1756545159299,39.04,203.05,203.04,10.30495391]
[1756545160598,0.06,203.05,203.04,5.37981601]
[1756545160788,39.04,203.05,203.04,5.37981601]
[1756545160986,39.04,203.05,203.02,4.92561319]
[1756545161202,39.04,203.05,203.03,0.67]
[1756545161604,39.04,203.05,203.04,0.67]
[1756545162601,0.06,203.05,203.04,5.37981601]
[1756545162805,39.04,203.05,203.04,5.37981601]
[1756545163185,39.04,203.05,203.04,0.67]
[1756545163385,39.04,203.05,203.04,5.37981601]
[1756545164113,39.04,203.05,203.04,10.30495391]
[1756545165214,39.04,203.05,203.04,0.67]
[1756545166201,0.06,203.05,203.04,0.67]
[1756545166713,39.04,203.05,203.04,0.67]
[1756545168525,39.04,203.05,203.04,5.37981601]
[1756545169291,0.06,203.05,203.04,5.37981601]
[1756545169496,0.06,203.05,203.04,0.67]
[1756545169692,39.04,203.05,203.04,5.37981601]
[1756545172094,0.06,203.05,203.04,10.30495391]
[1756545172409,0.06,203.08,203.04,10.30495391]
[1756545172612,0.06,203.08,203.07,4.70981601]
[1756545173004,0.06,203.08,203.07,5.37981601]
[1756545174003,0.06,203.08,203.07,0.67]
[1756545174210,0.06,203.08,203.07,10.30422631]
[1756545176226,0.06,203.08,203.07,5.37981601]
[1756545176600,0.06,203.08,203.07,10.30422631]
[1756545177935,0.06,203.08,203.07,5.37981601]
[1756545178832,39.02,203.08,203.07,5.37981601]
[1756545179208,0.06,203.08,203.07,5.37981601]
[1756545179534,39.02,203.08,203.07,0.67]
[1756545179712,0.06,203.08,203.07,5.37981601]
[1756545179914,39.02,203.08,203.07,5.37981601]
[1756545180230,0.06,203.08,203.07,5.37981601]
[1756545180620,39.02,203.08,203.07,10.30422631]
[1756545181319,39.02,203.08,203.02,4.92562309]
[1756545181320,0.06,203.08,203.02,4.92562309]
[1756545181526,0.06,203.08,203.07,5.38981601]
[1756545182321,0.06,203.1,203.07,5.38981601]
[1756545182522,0.06,203.1,203.09,4.70981601]
[1756545182908,0.06,203.1,203.09,5.38981601]
[1756545183521,0.06,203.1,203.09,10.31374136]
[1756545184058,0.06,203.13,203.09,41.07112633]
[1756545184230,0.06,203.13,203.12,4.70981601]
[1756545184914,43.84981601,203.13,203.07,4.92417265]
[1756545185218,4.70981601,203.11,203.06,4.70981601]
[1756545185430,4.70981601,203.11,203.06,10.31440932]
[1756545185624,4.70981601,203.11,203.06,9.63440932]
[1756545185834,4.70981601,203.11,203.06,5.38981601]
[1756545186131,4.82981601,203.11,203.06,5.38981601]
[1756545186630,9.75326034,203.11,203.06,0.68]
[1756545186817,4.70981601,203.08,203.02,4.70981601]
[1756545187132,38.94,203.07,203.02,5.38981601]
[1756545187332,38.94,203.07,203.03,5.38981601]
[1756545188031,38.94,203.07,203.03,5.41981601]
[1756545189335,38.94,203.07,203.03,4.73981601]
[1756545189538,38.94,203.06,203.03,4.73981601]
[1756545189718,38.94,203.06,203.03,0.03]
[1756545189919,38.94,203.06,203.03,0.71]
[1756545190137,4.70981601,203.08,203.03,0.71]
[1756545190328,38.94,203.05,203.03,0.71]
[1756545191626,38.94,203.05,203.03,0.03]
[1756545192536,38.94,203.05,203.03,0.71]
[1756545192954,38.94,203.05,203.03,0.03]
[1756545193329,38.94,203.04,203.03,0.03]
[1756545193731,4.70981601,203.07,203.03,0.03]
[1756545194036,38.94,203.04,203.03,0.03]
[1756545194727,4.82981601,203.06,203.03,0.03]
[1756545195035,38.94,203.05,203.03,0.03]
[1756545195455,43.76981601,203.05,203.03,0.03]
[1756545195830,43.64981601,203.05,203.03,0.03]
[1756545196233,26.0,203.07,203.03,0.03]
[1756545196438,46.88587613,203.06,203.03,0.03]
[1756545196631,38.94,203.05,203.03,0.03]
[1756545197035,43.64981601,203.05,203.03,0.03]
[1756545197748,4.70981601,203.04,203.03,0.03]
[1756545198265,38.94,203.04,203.03,0.03]
[1756545198459,43.64981601,203.04,203.03,0.03]
[1756545199362,47.00593055,203.04,203.03,0.03]
[1756545199656,42.29611454,203.04,203.03,0.03]
[1756545199831,42.17611454,203.04,203.03,0.03]
[1756545200349,51.93106845,203.04,203.03,0.03]
[1756545200543,42.29611454,203.04,203.03,0.03]
[1756545200743,47.00593055,203.04,203.03,0.03]
[1756545200929,8.06593055,203.04,203.03,0.03]
[1756545201130,47.00593055,203.04,203.03,0.03]
[1756545201534,51.93106845,203.04,203.03,0.03]
[1756545201733,12.99106845,203.04,203.03,0.03]
[1756545201943,51.93106845,203.04,203.03,0.03]
[1756545203755,47.22125244,203.04,203.03,0.03]
[1756545203960,51.93106845,203.04,203.03,0.03]
[1756545204752,3.23611454,203.04,203.03,0.03]
[1756545204936,43.64981601,203.04,203.03,0.03]
[1756545205145,46.88593055,203.04,203.03,0.03]
[1756545205479,51.81106845,203.04,203.03,0.03]
[1756545205960,51.93106845,203.04,203.03,0.03]
[1756545206840,65.52666246,203.04,203.03,0.03]
[1756545207153,65.40666246,203.04,203.03,0.03]
[1756545207452,26.58666246,203.04,203.03,0.03]
[1756545207762,65.52666246,203.04,203.03,0.03]
[1756545209537,65.40666246,203.04,203.03,0.03]
[1756545210959,65.52666246,203.04,203.03,0.03]
[1756545211339,65.66882403,203.04,203.03,0.03]
[1756545213763,7.94593055,203.04,203.03,0.03]
[1756545214154,3.23611454,203.04,203.03,0.72]
[1756545214474,42.17611454,203.04,203.03,0.72]
[1756545215770,46.88593055,203.04,203.03,0.72]
[1756545216852,46.88593055,203.04,203.03,0.03]
[1756545217477,51.81106845,203.04,203.03,0.03]
[1756545221473,12.87106845,203.04,203.03,0.03]
[1756545221863,51.81106845,203.04,203.03,0.03]
[1756545223771,65.54882403,203.04,203.03,0.03]
[1756545223980,65.66882403,203.04,203.03,0.03]
[1756545224479,60.95900802,203.04,203.03,0.03]
[1756545224680,65.66882403,203.04,203.03,0.03]
[1756545226653,39.59559401,202.98,202.97,1e-08]
[1756545226853,13.59559401,202.95,202.94,0.03]
[1756545227071,60.62368613,202.95,202.94,0.03]
[1756545227381,60.74368613,202.95,202.94,0.03]
[1756545227961,65.67100813,202.95,202.94,0.03]
[1756545228555,65.67100813,202.95,202.92,0.03]
[1756545228556,39.59559401,202.93,202.92,0.03]
[1756545228761,47.68368613,202.93,202.92,0.03]
[1756545229285,26.0,202.86,202.85,0.69]
[1756545229578,64.94,202.86,202.85,0.19]
[1756545229780,13.59559401,202.85,202.73,38.33118923]
[1756545229986,4.70981601,202.82,202.77,4.70981601]
[1756545230274,43.64981601,202.81,202.76,4.70981601]
[1756545230476,4.70981601,202.81,202.75,9.6419985]
[1756545230656,30.70981601,202.82,202.77,4.70981601]
[1756545230852,38.96,202.81,202.77,4.70981601]
[1756545231682,38.96,202.81,202.78,0.69]
[1756545231876,0.62,202.88,202.78,0.69]
[1756545231877,14.96759157,202.89,202.78,5.39981601]
[1756545232080,4.70981601,202.85,202.8,4.70981601]
[1756545232282,38.96,202.84,202.81,0.69]
[1756545232772,38.96,202.84,202.81,5.39981601]
[1756545233084,38.96,202.84,202.82,0.69]
[1756545234072,128.04216157,202.91,202.82,0.69]
[1756545234073,4.65875895,202.95,202.83,4.70981601]
[1756545234387,4.70981601,202.93,202.88,4.70981601]
[1756545234562,38.98,202.92,202.89,0.69]
[1756545234763,38.98,202.92,202.9,0.69]
[1756545235070,38.98,202.91,202.9,0.69]
[1756545235287,38.98,202.91,202.85,4.92974462]
[1756545235477,43.68981601,202.91,202.88,0.69]
[1756545235869,43.68981601,202.91,202.89,0.69]
[1756545236065,38.98,202.91,202.89,0.69]
[1756545236699,4.70981601,202.93,202.9,0.69]
[1756545236995,38.96,202.92,202.91,0.69]
[1756545237765,64.96,202.92,202.91,0.69]
[1756545237966,64.96,202.92,202.89,0.69]
[1756545238273,69.66981601,202.92,202.89,0.69]
[1756545238789,64.96,202.92,202.89,0.69]
[1756545238976,64.96,202.92,202.9,0.69]
[1756545239792,64.96,202.92,202.87,0.69]
[1756545239998,64.96,202.92,202.88,4.70981601]
[1756545240178,26.0,202.87,202.84,4.929255]
[1756545240496,39.28,202.86,202.84,9.63907101]
[1756545240671,39.28,202.86,202.85,0.69]
[1756545241295,39.28,202.86,202.82,0.7]
[1756545241497,39.28,202.86,202.83,0.7]
[1756545241700,5.32981601,202.85,202.8,0.7]
[1756545241999,43.96981601,202.84,202.8,0.7]
[1756545242700,39.28,202.83,202.81,0.7]
[1756545243480,39.3,202.82,202.81,0.7]
[1756545244182,39.3,202.82,202.79,5.40981601]
[1756545244386,39.3,202.82,202.8,0.7]
[1756545244796,39.3,202.82,202.79,4.70981601]
[1756545244979,39.3,202.82,202.8,0.7]
[1756545245380,4.70981601,202.85,202.81,0.7]
[1756545245595,39.3,202.84,202.82,0.7]
[1756545246480,39.3,202.83,202.82,0.7]
[1756545246998,4.70981601,202.86,202.82,0.7]
[1756545247398,39.28,202.85,202.82,0.7]
[1756545247595,4.70981601,202.86,202.81,4.70981601]
[1756545247782,39.26,202.85,202.81,5.40981601]
[1756545248309,39.26,202.85,202.81,10.34052298]
[1756545248503,39.26,202.85,202.82,0.7]
[1756545248903,14.21559401,202.88,202.83,5.40981601]
[1756545248904,39.26,202.84,202.83,5.40981601]
[1756545249588,30.70981601,202.88,202.83,5.40981601]
[1756545249589,39.26,202.85,202.83,5.40981601]
[1756545249780,156.23364768,202.99,202.84,5.40981601]
[1756545249999,43.94981601,202.93,202.87,4.70981601]
[1756545250180,4.70981601,202.93,202.87,5.40981601]
[1756545250376,39.28,202.92,202.87,5.40981601]
[1756545250595,39.28,202.92,202.88,0.7]
[1756545251995,26.0,202.91,202.88,0.7]
[1756545252300,39.24,202.9,202.88,0.7]
[1756545252502,65.24,202.91,202.89,0.7]
[1756545253017,65.24,202.91,202.87,4.70981601]
[1756545253209,65.24,202.91,202.87,5.40981601]
[1756545253391,69.94981601,202.91,202.87,0.7]
[1756545254011,69.94981601,202.91,202.83,6.109816]
[1756545254012,4.70981601,202.89,202.83,6.109816]
[1756545254302,43.92981601,202.88,202.83,5.40981601]
[1756545254510,43.92981601,202.88,202.84,0.7]
[1756545255303,39.22,202.88,202.84,5.40981601]
[1756545255891,39.22,202.88,202.84,0.7]
[1756545256091,39.22,202.88,202.84,4.70981601]
[1756545256289,39.22,202.88,202.85,0.7]
[1756545256707,39.22,202.88,202.84,4.70981601]
[1756545256896,39.22,202.88,202.84,0.7]
[1756545257098,39.22,202.88,202.85,4.70981601]
[1756545257405,65.22,202.9,202.87,4.70981601]
[1756545257610,65.22,202.9,202.86,4.70981601]
[1756545257910,65.22,202.9,202.86,0.7]
[1756545258209,65.22,202.9,202.87,5.40981601]
[1756545258397,4.70981601,202.92,202.87,5.40981601]
[1756545258591,39.22,202.91,202.88,0.7]
[1756545258896,39.22,202.91,202.88,5.40981601]
[1756545259292,43.92981601,202.91,202.86,5.40981601]
[1756545260110,39.22,202.9,202.86,5.40981601]
[1756545260408,39.22,202.9,202.86,4.70981601]
[1756545260409,39.2,202.9,202.86,4.70981601]
[1756545260596,39.2,202.9,202.87,0.7]
[1756545260788,4.76981601,202.91,202.87,0.7]
[1756545261111,4.76981601,202.91,202.86,4.70981601]
[1756545261112,0.06,202.91,202.89,4.70981601]
[1756545261307,0.06,202.91,202.9,5.40981601]
[1756545262109,13.59559401,202.9,202.85,4.929727]
[1756545262314,13.59559401,202.9,202.83,0.7]
[1756545262315,4.70981601,202.88,202.83,5.40981601]
[1756545262612,26.0,202.85,202.81,0.03]
[1756545262792,4.70981601,202.84,202.81,0.03]
[1756545263114,70.74981601,202.85,202.81,0.03]
[1756545263294,4.70981601,202.84,202.81,0.03]
[1756545265523,40.04,202.89,202.83,4.70981601]
[1756545265714,4.70981601,202.88,202.82,5.40981601]
[1756545265914,4.70981601,202.87,202.82,0.7]
[1756545266101,39.42,202.86,202.82,5.40981601]
[1756545266709,44.12981601,202.86,202.82,0.7]
[1756545267511,44.12981601,202.86,202.81,9.67033888]
[1756545267722,44.12981601,202.86,202.81,10.37033888]
[1756545268031,44.12981601,202.86,202.82,5.63034597]
[1756545268704,4.70981601,202.86,202.82,5.63034597]
[1756545269020,39.4,202.85,202.82,5.63034597]
[1756545270225,39.4,202.85,202.82,9.64016198]
[1756545270428,39.4,202.85,202.82,5.63034597]
[1756545270595,26.0,202.87,202.83,0.7]
[1756545270798,26.0,202.87,202.82,9.64016198]
[1756545270799,4.76981601,202.91,202.86,4.70981601]
[1756545271094,39.36,202.89,202.87,0.67]
[1756545271618,18.30541002,202.88,202.81,0.03]
[1756545271817,4.70981601,202.85,202.81,0.03]
[1756545272021,4.70981601,202.85,202.82,4.930346]
[1756545272206,4.70981601,202.85,202.81,0.03]
[1756545272716,5.32981601,202.85,202.81,0.03]
[1756545272904,39.54,202.84,202.81,0.03]
[1756545273503,0.62,202.83,202.81,0.03]
[1756545273903,13.59559401,202.86,202.81,0.03]
[1756545274107,48.10233407,202.85,202.81,0.03]
[1756545274302,4.70981601,202.84,202.81,0.03]
[1756545274608,39.54,202.84,202.81,0.03]
[1756545275594,39.58,202.83,202.81,0.7]
[1756545275797,39.58,202.83,202.81,0.03]
[1756545277227,44.90981601,202.83,202.81,0.03]
[1756545277434,44.28981601,202.83,202.81,0.03]
[1756545277729,5.32981601,202.82,202.81,0.03]